fUSD/lending_fUSD_20240105
["ID","MTS","AMOUNT","RATE_DAILY","PERIOD"]
[310336997,1704478273448,-500.0,0.00030684,2]
[310336998,1704478273457,-500.0,0.00030684,2]
[310336999,1704478273468,-527.37249434,0.00030684,2]
[310337000,1704478273480,-500.0,0.00030684,2]
[310337001,1704478273490,-500.0,0.00030684,2]
[310337002,1704478273502,-500.0,0.00030684,2]
[310337003,1704478273512,-500.0,0.00030684,2]
[310337004,1704478273522,-500.0,0.00030684,2]
[310337005,1704478273532,-500.0,0.00030684,2]
[310337006,1704478273542,-526.98,0.00030684,2]
[310337007,1704478273552,-500.0,0.00030684,2]
[310337008,1704478273562,-300.16,0.00030684,2]
[310337009,1704478273571,-500.0,0.00030684,2]
[310337010,1704478273581,-500.0,0.00030684,2]
[310337011,1704478273591,-500.0,0.00030684,2]
[310337012,1704478273600,-500.0,0.00030684,2]
[310337013,1704478273609,-500.0,0.00030684,2]
[310337014,1704478273618,-500.0,0.00030684,2]
[310337015,1704478273628,-562.91018441,0.00030684,2]
[310337016,1704478273638,-500.0,0.00030684,2]
[310337017,1704478273648,-623.9,0.00030684,2]
[310337018,1704478273659,-212.68,0.00030684,2]
[310337019,1704478273668,-500.0,0.00030684,2]
[310337020,1704478273678,-500.0,0.00030684,2]
[310337021,1704478273688,-500.0,0.00030684,2]
[310337022,1704478273697,-532.73,0.00030684,2]
[310337023,1704478273707,-500.0,0.00030684,2]
[310337024,1704478273716,-204.9477111,0.00030684,2]
[310337025,1704478273726,-656.85,0.00030684,2]
[310337026,1704478273736,-500.0,0.00030684,2]
[310337027,1704478273746,-500.0,0.00030684,2]
[310337028,1704478273756,-500.0,0.00030684,2]
[310337029,1704478273766,-500.0,0.00030684,2]
[310337030,1704478273779,-500.0,0.00030684,2]
[310337031,1704478273789,-500.0,0.00030684,2]
[310337032,1704478273799,-500.0,0.00030684,2]
[310337033,1704478273809,-500.0,0.00030684,2]
[310337034,1704478273818,-500.0,0.00030684,2]
[310337035,1704478273828,-931.47,0.00030684,2]
[310337036,1704478273838,-500.0,0.00030684,2]
[310337037,1704478273847,-500.0,0.00030684,2]
[310337038,1704478273857,-500.0,0.00030684,2]
[310337039,1704478273868,-300.0,0.00030684,2]
[310337040,1704478273877,-500.0,0.00030684,2]
[310337041,1704478274081,-527.82,0.00030684,2]
[310337042,1704478274102,-500.0,0.00030684,2]
[310337043,1704478274112,-392.61142772,0.00030684,2]
[310337044,1704478274122,-502.5833047,0.00030684,2]
[310337045,1704478274131,-500.0,0.00030684,2]
[310337046,1704478274140,-380.3948572,0.00030684,2]
[310337047,1704478274150,-500.0,0.00030684,2]
[310337048,1704478274159,-500.0,0.00030684,2]
[310337049,1704478274168,-500.0,0.00030684,2]
[310337050,1704478274178,-644.46,0.00030684,2]
[310337051,1704478274188,-633.67,0.00030684,2]
[310337052,1704478274198,-500.0,0.00030684,2]
[310337053,1704478274207,-500.0,0.00030684,2]
[310337054,1704478274217,-500.0,0.00030684,2]
[310337055,1704478274226,-895.83,0.00030684,2]
[310337056,1704478274235,-500.0,0.00030684,2]
[310337057,1704478274245,-560.1730972,0.00030684,2]
[310337058,1704478274254,-500.0,0.00030684,2]
[310337059,1704478274263,-500.0,0.00030684,2]
[310337060,1704478274272,-500.0,0.00030684,2]
[310337061,1704478274282,-500.0,0.00030684,2]
[310337062,1704478274291,-500.0,0.00030684,2]
[310337063,1704478274300,-642.50389218,0.00030684,2]
[310337064,1704478274309,-500.0,0.00030684,2]
[310337065,1704478274319,-822.67,0.00030684,2]
[310337066,1704478274328,-500.0,0.00030684,2]
[310337067,1704478274336,-500.0,0.00030684,2]
[310337068,1704478274345,-459.84,0.00030684,2]
[310337069,1704478274355,-500.0,0.00030684,2]
[310337070,1704478274364,-500.0,0.00030684,2]
[310337071,1704478274374,-287.79,0.00030684,2]
[310337072,1704478274383,-500.0,0.00030684,2]
[310337073,1704478274392,-500.0,0.00030684,2]
[310337074,1704478274402,-310.31371284,0.00030684,2]
[310337075,1704478274411,-261.86487958,0.00030684,2]
[310337076,1704478274421,-238.67887383,0.00030684,2]
[310337077,1704478274430,-500.0,0.00030684,2]
[310337078,1704478274440,-500.0,0.00030684,2]
[310337079,1704478274450,-500.0,0.00030684,2]
[310337080,1704478274459,-640.53,0.00030684,2]
[310337081,1704478274468,-500.0,0.00030684,2]
[310337082,1704478274478,-500.0,0.00030684,2]
[310337083,1704478274487,-500.0,0.00030684,2]
[310337084,1704478274499,-500.0,0.00030684,2]
[310337085,1704478274509,-500.0,0.00030684,2]
[310337086,1704478274519,-500.0,0.00030684,2]
[310337087,1704478274529,-500.0,0.00030684,2]
[310337088,1704478274538,-500.0,0.00030684,2]
[310337089,1704478274548,-500.0,0.00030684,2]
[310337090,1704478274558,-500.0,0.00030684,2]
[310337091,1704478274569,-500.0,0.00030684,2]
[310337092,1704478274579,-500.0,0.00030684,2]
[310337093,1704478274589,-500.0,0.00030684,2]
[310337094,1704478274599,-500.0,0.00030684,2]
[310337095,1704478274609,-500.0,0.00030684,2]
[310337096,1704478274619,-500.0,0.00030684,2]
[310337097,1704478274630,-666.28,0.00030684,2]
[310337098,1704478274640,-494.43,0.00030684,2]
[310337099,1704478274650,-500.0,0.00030684,2]
[310337100,1704478274659,-500.0,0.00030684,2]
[310337101,1704478274669,-500.0,0.00030684,2]
[310337102,1704478274678,-500.0,0.00030684,2]
[310337103,1704478274687,-500.0,0.00030684,2]
[310337104,1704478274696,-500.0,0.00030684,2]
[310337105,1704478274706,-500.0,0.00030684,2]
[310337106,1704478274715,-500.0,0.00030684,2]
[310337107,1704478274725,-500.0,0.00030684,2]
[310337108,1704478274734,-703.96,0.00030684,2]
[310337109,1704478274744,-500.0,0.00030684,2]
[310337110,1704478274754,-500.0,0.00030684,2]
[310337111,1704478274763,-262.27234816,0.00030684,2]
[310337112,1704478274773,-743.05,0.00030684,2]
[310337113,1704478274783,-500.0,0.00030684,2]
[310337114,1704478274792,-500.0,0.00030684,2]
[310337115,1704478274802,-802.91,0.00030684,2]
[310337116,1704478274811,-169.28324069,0.00030684,2]
[310337117,1704478274820,-1424.79,0.00030684,2]
[310337118,1704478274830,-500.0,0.00030684,2]
[310337119,1704478274839,-500.0,0.00030684,2]
[310337120,1704478274849,-500.0,0.00030684,2]
[310337121,1704478274858,-500.0,0.00030684,2]
[310337122,1704478274867,-500.0,0.00030684,2]
[310337123,1704478274877,-1021.11,0.00030684,2]
[310337124,1704478274886,-1632.94,0.00030684,2]
[310337125,1704478274895,-500.0,0.00030684,2]
[310337126,1704478274904,-599.91,0.00030684,2]
[310337127,1704478274914,-500.0,0.00030684,2]
[310337128,1704478274923,-609.34,0.00030684,2]
[310337129,1704478274933,-741.06,0.00030684,2]
[310337130,1704478274943,-500.0,0.00030684,2]
[310337131,1704478274952,-500.0,0.00030684,2]
[310337132,1704478274962,-500.0,0.00030684,2]
[310337133,1704478274971,-500.0,0.00030684,2]
[310337134,1704478274980,-500.0,0.00030684,2]
[310337135,1704478274990,-745.51,0.00030684,2]
[310337136,1704478275000,-555.26,0.00030684,2]
[310337137,1704478275009,-500.0,0.00030684,2]
[310337138,1704478275019,-253.11880557,0.00030684,2]
[310337139,1704478275028,-500.0,0.00030684,2]
[310337140,1704478275038,-500.0,0.00030684,2]
[310337141,1704478275047,-500.0,0.00030684,2]
[310337142,1704478275057,-500.0,0.00030684,2]
[310337143,1704478275066,-500.0,0.00030684,2]
[310337144,1704478275075,-500.0,0.00030684,2]
[310337145,1704478275084,-500.0,0.00030684,2]
[310337146,1704478275094,-500.0,0.00030684,2]
[310337147,1704478275103,-972.18,0.00030684,2]
[310337148,1704478275112,-168.35927876,0.00030684,2]
[310337149,1704478275122,-495.33313842,0.00030684,2]
[310337150,1704478275131,-912.19,0.00030684,2]
[310337151,1704478275141,-500.0,0.00030684,2]
[310337152,1704478275150,-1091.99,0.00030684,2]
[310337153,1704478275160,-180.90184439,0.00030684,2]
[310337154,1704478275170,-500.0,0.00030684,2]
[310337155,1704478275179,-500.0,0.00030684,2]
[310337156,1704478275190,-500.0,0.00030684,2]
[310337157,1704478275199,-500.0,0.00030684,2]
[310337158,1704478275208,-500.0,0.00030684,2]
[310337159,1704478275217,-194.69861136,0.00030684,2]
[310337160,1704478275226,-500.0,0.00030684,2]
[310337161,1704478275236,-500.0,0.00030684,2]
[310337162,1704478275245,-252.25216009,0.00030684,2]
[310337163,1704478275255,-500.0,0.00030684,2]
[310337164,1704478275265,-500.0,0.00030684,2]
[310337165,1704478275274,-500.0,0.00030684,2]
[310337166,1704478275283,-500.0,0.00030684,2]
[310337167,1704478275293,-917.07,0.00030684,2]
[310337168,1704478275302,-500.0,0.00030684,2]
[310337169,1704478275311,-500.0,0.00030684,2]
[310337170,1704478275321,-500.0,0.00030684,2]
[310337171,1704478275331,-500.0,0.00030684,2]
[310337172,1704478275340,-500.0,0.00030684,2]
[310337173,1704478275349,-500.0,0.00030684,2]
[310337174,1704478275359,-500.0,0.00030684,2]
[310337175,1704478275368,-500.0,0.00030684,2]
[310337176,1704478275376,-500.0,0.00030684,2]
[310337177,1704478275386,-500.0,0.00030684,2]
[310337178,1704478275395,-500.0,0.00030684,2]
[310337179,1704478275405,-500.0,0.00030684,2]
[310337180,1704478275414,-500.0,0.00030684,2]
[310337181,1704478275423,-438.14846518,0.00030684,2]
[310337182,1704478275434,-500.0,0.00030684,2]
[310337183,1704478275444,-500.0,0.00030684,2]
[310337184,1704478275454,-500.0,0.00030684,2]
[310337185,1704478275463,-607.78,0.00030684,2]
[310337186,1704478275473,-630.38,0.00030684,2]
[310337187,1704478275482,-500.0,0.00030684,2]
[310337188,1704478275492,-528.7,0.00030684,2]
[310337189,1704478275501,-500.0,0.00030684,2]
[310337190,1704478275510,-500.0,0.00030684,2]
[310337191,1704478275520,-500.0,0.00030684,2]
[310337192,1704478275529,-413.19,0.00030684,2]
[310337193,1704478275539,-1550.96,0.00030684,2]
[310337194,1704478275548,-500.0,0.00030684,2]
[310337195,1704478275558,-500.0,0.00030684,2]
[310337196,1704478275568,-500.0,0.00030684,2]
[310337197,1704478275578,-500.0,0.00030684,2]
[310337198,1704478275587,-530.41311498,0.00030684,2]
[310337199,1704478275597,-594.47,0.00030684,2]
[310337200,1704478275607,-282.99,0.00030684,2]
[310337201,1704478275617,-500.0,0.00030684,2]
[310337202,1704478275626,-500.0,0.00030684,2]
[310337203,1704478275636,-2011.43,0.00030684,2]
[310337204,1704478275646,-500.0,0.00030684,2]
[310337205,1704478275657,-500.0,0.00030684,2]
[310337206,1704478275667,-500.0,0.00030684,2]
[310337207,1704478275677,-660.15,0.00030684,2]
[310337208,1704478275687,-1278.29,0.00030684,2]
[310337209,1704478275697,-500.0,0.00030684,2]
[310337210,1704478275706,-500.0,0.00030684,2]
[310337211,1704478275717,-500.0,0.00030684,2]
[310337212,1704478275727,-518.14,0.00030684,2]
[310337213,1704478275737,-500.0,0.00030684,2]
[310337214,1704478275747,-2498.07,0.00030684,2]
[310337215,1704478275758,-500.0,0.00030684,2]
[310337216,1704478275769,-500.0,0.00030684,2]
[310337217,1704478275779,-500.0,0.00030684,2]
[310337218,1704478275789,-500.0,0.00030684,2]
[310337219,1704478275798,-1834.96,0.00030684,2]
[310337220,1704478275807,-500.0,0.00030684,2]
[310337221,1704478275816,-500.0,0.00030684,2]
[310337222,1704478275826,-500.0,0.00030684,2]
[310337223,1704478275835,-500.0,0.00030684,2]
[310337224,1704478275844,-500.0,0.00030684,2]
[310337225,1704478275854,-9565.89,0.00030684,2]
[310337226,1704478275863,-500.0,0.00030684,2]
[310337227,1704478275872,-500.0,0.00030684,2]
[310337228,1704478275883,-1440.96,0.00030684,2]
[310337229,1704478275895,-1142.09,0.00030684,2]
[310337230,1704478275904,-550.45,0.00030684,2]
[310337231,1704478275913,-500.0,0.00030684,2]
[310337232,1704478275922,-500.0,0.00030684,2]
[310337233,1704478275932,-1814.76,0.00030684,2]
[310337234,1704478275943,-500.0,0.00030684,2]
[310337235,1704478275952,-418.1374601,0.00030684,2]
[310337236,1704478275962,-500.0,0.00030684,2]
[310337237,1704478275973,-500.0,0.00030684,2]
[310337238,1704478275983,-500.0,0.00030684,2]
[310337239,1704478275992,-500.0,0.00030684,2]
[310337240,1704478276001,-500.0,0.00030684,2]
[310337241,1704478276012,-500.0,0.00030684,2]
[310337242,1704478276021,-1607.32,0.00030684,2]
[310337243,1704478276030,-1423.62,0.00030684,2]
[310337244,1704478276039,-500.0,0.00030684,2]
[310337245,1704478276049,-500.0,0.00030684,2]
[310337246,1704478276058,-500.0,0.00030684,2]
[310337247,1704478276067,-500.0,0.00030684,2]
[310337248,1704478276077,-2117.59,0.00030684,2]
[310337249,1704478276087,-500.0,0.00030684,2]
[310337250,1704478276096,-1823.51,0.00030684,2]
[310337251,1704478276105,-581.84793769,0.00030684,2]
[310337252,1704478276115,-1774.9,0.00030684,2]
[310337253,1704478276124,-500.0,0.00030684,2]
[310337254,1704478276134,-916.2,0.00030684,2]
[310337255,1704478276143,-910.93,0.00030684,2]
[310337256,1704478276153,-500.0,0.00030684,2]
[310337257,1704478276162,-500.0,0.00030684,2]
[310337258,1704478276171,-1100.89,0.00030684,2]
[310337259,1704478276180,-500.0,0.00030684,2]
[310337260,1704478276190,-500.0,0.00030684,2]
[310337261,1704478276199,-500.0,0.00030684,2]
[310337262,1704478276208,-500.0,0.00030684,2]
[310337263,1704478276217,-500.0,0.00030684,2]
[310337264,1704478276227,-3407.55,0.00030684,2]
[310337265,1704478276236,-500.0,0.00030684,2]
[310337266,1704478276246,-500.0,0.00030684,2]
[310337267,1704478276255,-557.85,0.00030684,2]
[310337268,1704478276265,-500.0,0.00030684,2]
[310337269,1704478276274,-7740.06,0.00030684,2]
[310337270,1704478276283,-3440.39,0.00030684,2]
[310337271,1704478276293,-3563.19,0.00030684,2]
[310337272,1704478276302,-500.0,0.00030684,2]
[310337273,1704478276312,-500.0,0.00030684,2]
[310337274,1704478276321,-500.0,0.00030684,2]
[310337275,1704478276331,-6788.63,0.00030684,2]
[310337276,1704478276341,-500.0,0.00030684,2]
[310337277,1704478276350,-4014.71,0.00030684,2]
[310337278,1704478276359,-500.0,0.00030684,2]
[310337279,1704478276368,-500.0,0.00030684,2]
[310337280,1704478276378,-500.0,0.00030684,2]
[310337281,1704478276387,-500.0,0.00030684,2]
[310337282,1704478276397,-500.0,0.00030684,2]
[310337283,1704478276406,-500.0,0.00030684,2]
[310337284,1704478276415,-500.0,0.00030684,2]
[310337285,1704478276425,-5312.22,0.00030684,2]
[310337286,1704478276435,-1075.0,0.00030684,2]
[310337287,1704478276445,-525.38,0.00030684,2]
[310337288,1704478276503,-839.43,0.00030684,2]
[310337289,1704478276513,-806.57,0.00030684,2]
[310337290,1704478276523,-500.0,0.00030684,2]
[310337291,1704478276532,-1109.02,0.00030684,2]
[310337292,1704478276541,-738.72,0.00030684,2]
[310337293,1704478276551,-500.0,0.00030684,2]
[310337294,1704478276561,-4237.78,0.00030684,2]
[310337295,1704478276570,-500.0,0.00030684,2]
[310337296,1704478276579,-3366.02,0.00030684,2]
[310337297,1704478276589,-500.0,0.00030684,2]
[310337298,1704478276598,-707.02,0.00030684,2]
[310337299,1704478276607,-3417.32,0.00030684,2]
[310337300,1704478276617,-500.0,0.00030684,2]
[310337301,1704478276626,-513.03338306,0.00030684,2]
[310337302,1704478276636,-500.0,0.00030684,2]
[310337303,1704478276645,-545.37,0.00030684,2]
[310337304,1704478276654,-500.0,0.00030684,2]
[310337305,1704478276664,-500.0,0.00030684,2]
[310337306,1704478276673,-752.62,0.00030684,2]
[310337307,1704478276682,-3044.31,0.00030684,2]
[310337308,1704478276693,-638.78,0.00030684,2]
[310337309,1704478276702,-500.0,0.00030684,2]
[310337310,1704478276711,-1086.71,0.00030684,2]
[310337311,1704478276721,-500.0,0.00030684,2]
[310337312,1704478276731,-500.0,0.00030684,2]
[310337313,1704478276740,-2631.42,0.00030684,2]
[310337314,1704478276750,-500.0,0.00030684,2]
[310337315,1704478276759,-463.27758708,0.00030684,2]
[310337316,1704478276769,-500.0,0.00030684,2]
[310337317,1704478276778,-908.49,0.00030684,2]
[310337318,1704478276787,-7095.16,0.00030684,2]
[310337319,1704478276797,-500.0,0.00030684,2]
[310337320,1704478276806,-1044.21,0.00030684,2]
[310337321,1704478276815,-500.0,0.00030684,2]
[310337322,1704478276824,-500.0,0.00030684,2]
[310337323,1704478276833,-500.0,0.00030684,2]
[310337324,1704478276843,-2069.53,0.00030684,2]
[310337325,1704478276853,-500.0,0.00030684,2]
[310337326,1704478276862,-607.32,0.00030684,2]
[310337327,1704478276872,-500.0,0.00030684,2]
[310337328,1704478276880,-704.5,0.00030684,2]
[310337329,1704478276889,-500.0,0.00030684,2]
[310337330,1704478276899,-9673.95,0.00030684,2]
[310337331,1704478276909,-4414.62,0.00030684,2]
[310337332,1704478276918,-500.0,0.00030684,2]
[310337333,1704478276927,-500.0,0.00030684,2]
[310337334,1704478276938,-637.81,0.00030684,2]
[310337335,1704478276948,-555.95,0.00030684,2]
[310337336,1704478276958,-5260.32,0.00030684,2]
[310337337,1704478276967,-500.0,0.00030684,2]
[310337338,1704478276976,-500.0,0.00030684,2]
[310337339,1704478276985,-500.0,0.00030684,2]
[310337340,1704478276994,-1535.24,0.00030684,2]
[310337341,1704478277004,-1697.23,0.00030684,2]
[310337342,1704478277013,-2289.62,0.00030684,2]
[310337343,1704478277023,-2092.8,0.00030684,2]
[310337344,1704478277032,-623.49,0.00030684,2]
[310337345,1704478277041,-500.0,0.00030684,2]
[310337346,1704478277050,-500.0,0.00030684,2]
[310337347,1704478277060,-500.0,0.00030684,2]
[310337348,1704478277069,-2062.5,0.00030684,2]
[310337349,1704478277078,-500.0,0.00030684,2]
[310337350,1704478277088,-4071.94,0.00030684,2]
[310337351,1704478277097,-500.0,0.00030684,2]
[310337352,1704478277106,-1878.56,0.00030684,2]
[310337353,1704478277115,-1499.09,0.00030684,2]
[310337354,1704478277124,-500.0,0.00030684,2]
[310337355,1704478277133,-1830.35,0.00030684,2]
[310337356,1704478277143,-3669.22,0.00030684,2]
[310337357,1704478277152,-500.0,0.00030684,2]
[310337358,1704478277161,-3630.26,0.00030684,2]
[310337359,1704478277170,-500.0,0.00030684,2]
[310337360,1704478277179,-202.36591962,0.00030684,2]
[310337361,1704478277189,-2503.53,0.00030684,2]
[310337362,1704478277198,-739.13,0.00030684,2]
[310337363,1704478277207,-500.0,0.00030684,2]
[310337364,1704478277216,-500.0,0.00030684,2]
[310337365,1704478277226,-500.0,0.00030684,2]
[310337366,1704478277235,-1741.7,0.00030684,2]
[310337367,1704478277244,-4170.19,0.00030684,2]
[310337368,1704478277253,-343.79270228,0.00030684,2]
[310337369,1704478277263,-3393.61,0.00030684,2]
[310337370,1704478277276,-711.68,0.00030684,2]
[310337371,1704478277285,-14143.48,0.00030684,2]
[310337372,1704478277296,-1956.72,0.00030684,2]
[310337373,1704478277306,-500.0,0.00030684,2]
[310337374,1704478277316,-518.83205858,0.00030684,2]
[310337375,1704478277326,-606.43,0.00030684,2]
[310337376,1704478277335,-500.0,0.00030684,2]
[310337377,1704478277344,-4512.48,0.00030684,2]
[310337378,1704478277354,-2194.25,0.00030684,2]
[310337379,1704478277364,-500.0,0.00030684,2]
[310337380,1704478277373,-5826.76,0.00030684,2]
[310337381,1704478277382,-333.83,0.00030684,2]
[310337382,1704478277391,-1286.47,0.00030684,2]
[310337383,1704478277400,-500.0,0.00030684,2]
[310337384,1704478277410,-1557.93,0.00030684,2]
[310337385,1704478277418,-500.0,0.00030684,2]
[310337386,1704478277428,-500.0,0.00030684,2]
[310337387,1704478277437,-500.0,0.00030684,2]
[310337388,1704478277447,-500.0,0.00030684,2]
[310337389,1704478277456,-500.0,0.00030684,2]
[310337390,1704478277465,-608.9075643,0.00030684,2]
[310337391,1704478277473,-500.0,0.00030684,2]
[310337392,1704478277483,-2234.59,0.00030684,2]
[310337393,1704478277492,-500.0,0.00030684,2]
[310337394,1704478277501,-500.0,0.00030684,2]
[310337395,1704478277511,-500.0,0.00030684,2]
[310337396,1704478277520,-500.0,0.00030684,2]
[310337397,1704478277530,-658.24,0.00030684,2]
[310337398,1704478277539,-500.0,0.00030684,2]
[310337399,1704478277548,-500.0,0.00030684,2]
[310337400,1704478277558,-3384.57,0.00030684,2]
[310337401,1704478277568,-3329.36,0.00030684,2]
[310337402,1704478277578,-4166.42,0.00030684,2]
[310337403,1704478277589,-5701.04,0.00030684,2]
[310337404,1704478277597,-500.0,0.00030684,2]
[310337405,1704478277607,-500.0,0.00030684,2]
[310337406,1704478277616,-501.95,0.00030684,2]
[310337407,1704478277626,-500.0,0.00030684,2]
[310337408,1704478277636,-1099.53,0.00030684,2]
[310337409,1704478277645,-500.0,0.00030684,2]
[310337410,1704478277654,-1999.67,0.00030684,2]
[310337411,1704478277664,-540.4,0.00030684,2]
[310337412,1704478277673,-2540.02,0.00030684,2]
[310337413,1704478277682,-500.0,0.00030684,2]
[310337414,1704478277692,-500.0,0.00030684,2]
[310337415,1704478277701,-500.0,0.00030684,2]
[310337416,1704478277710,-500.0,0.00030684,2]
[310337417,1704478277719,-1336.43,0.00030684,2]
[310337418,1704478277729,-912.83,0.00030684,2]
[310337419,1704478277740,-500.0,0.00030684,2]
[310337420,1704478277749,-1496.37,0.00030684,2]
[310337421,1704478277759,-500.0,0.00030684,2]
[310337422,1704478277768,-3456.02,0.00030684,2]
[310337423,1704478277778,-709.31,0.00030684,2]
[310337424,1704478277787,-2028.82,0.00030684,2]
[310337425,1704478277797,-500.0,0.00030684,2]
[310337426,1704478277807,-500.0,0.00030684,2]
[310337427,1704478277816,-3033.76,0.00030684,2]
[310337428,1704478277825,-500.0,0.00030684,2]
[310337429,1704478277835,-500.0,0.00030684,2]
[310337430,1704478277844,-500.0,0.00030684,2]
[310337431,1704478277853,-2660.01,0.00030684,2]
[310337432,1704478277863,-797.44,0.00030684,2]
[310337433,1704478277872,-500.0,0.00030684,2]
[310337434,1704478277882,-533.09,0.00030684,2]
[310337435,1704478277894,-506.38517537,0.00030684,2]
[310337436,1704478277903,-500.0,0.00030684,2]
[310337437,1704478277912,-5160.19,0.00030684,2]
[310337438,1704478277922,-500.0,0.00030684,2]
[310337439,1704478277932,-500.0,0.00030684,2]
[310337440,1704478277941,-500.0,0.00030684,2]
[310337441,1704478277950,-500.0,0.00030684,2]
[310337442,1704478277959,-1204.65,0.00030684,2]
[310337443,1704478277968,-641.02,0.00030684,2]
[310337444,1704478277977,-500.0,0.00030684,2]
[310337445,1704478277988,-500.0,0.00030684,2]
[310337446,1704478277996,-500.0,0.00030684,2]
[310337447,1704478278006,-500.0,0.00030684,2]
[310337448,1704478278016,-2743.63,0.00030684,2]
[310337449,1704478278026,-500.0,0.00030684,2]
[310337450,1704478278037,-1248.34,0.00030684,2]
[310337451,1704478278048,-2488.0,0.00030684,2]
[310337452,1704478278057,-726.84,0.00030684,2]
[310337453,1704478278066,-2317.11,0.00030684,2]
[310337454,1704478278075,-1702.34,0.00030684,2]
[310337455,1704478278085,-500.0,0.00030684,2]
[310337456,1704478278094,-500.0,0.00030684,2]
[310337457,1704478278104,-3521.58,0.00030684,2]
[310337458,1704478278113,-930.79,0.00030684,2]
[310337459,1704478278122,-615.37,0.00030684,2]
[310337460,1704478278132,-500.0,0.00030684,2]
[310337461,1704478278141,-716.43,0.00030684,2]
[310337462,1704478278151,-500.0,0.00030684,2]
[310337463,1704478278160,-1089.63,0.00030684,2]
[310337464,1704478278170,-500.0,0.00030684,2]
[310337465,1704478278179,-500.0,0.00030684,2]
[310337466,1704478278190,-23051.48,0.00030684,2]
[310337467,1704478278198,-1651.5,0.00030684,2]
[310337468,1704478278208,-500.0,0.00030684,2]
[310337469,1704478278217,-1350.99,0.00030684,2]
[310337470,1704478278225,-500.0,0.00030684,2]
[310337471,1704478278233,-500.0,0.00030684,2]
[310337472,1704478278243,-2082.4,0.00030684,2]
[310337473,1704478278252,-500.0,0.00030684,2]
[310337474,1704478278262,-556.59,0.00030684,2]
[310337475,1704478278271,-500.0,0.00030684,2]
[310337476,1704478278280,-1838.79,0.00030684,2]
[310337477,1704478278289,-2129.91,0.00030684,2]
[310337478,1704478278299,-500.0,0.00030684,2]
[310337479,1704478278308,-1114.73,0.00030684,2]
[310337480,1704478278317,-4628.16,0.00030684,2]
[310337481,1704478278326,-500.0,0.00030684,2]
[310337482,1704478278336,-500.0,0.00030684,2]
[310337483,1704478278344,-527.83,0.00030684,2]
[310337484,1704478278353,-500.0,0.00030684,2]
[310337485,1704478278362,-633.9,0.00030684,2]
[310337486,1704478278371,-1488.21,0.00030684,2]
[310337487,1704478278380,-1099.69,0.00030684,2]
[310337488,1704478278390,-1126.7,0.00030684,2]
[310337489,1704478278399,-500.0,0.00030684,2]
[310337490,1704478278408,-3045.53,0.00030684,2]
[310337491,1704478278418,-6507.43,0.00030684,2]
[310337492,1704478278427,-500.0,0.00030684,2]
[310337493,1704478278436,-3728.5,0.00030684,2]
[310337494,1704478278446,-500.0,0.00030684,2]
[310337495,1704478278455,-1675.29,0.00030684,2]
[310337496,1704478278464,-573.52,0.00030684,2]